[Event "Hungarian Rapid-ch 2022"]
[Site "Ajka"]
[Date "2022.07.17"]
[Round "11.17"]
[White "Straubinger, Daniel"]
[Black "Szamoskozi, Gabor"]
[Result "0-1"]
[ECO "B10"]
[WhiteElo "2349"]
[BlackElo "2243"]
[Annotator "ChessBase"]
[PlyCount "110"]
[EventDate "2022.07.15"]
[EventType "swiss"]
[EventCountry "HUN"]
[SourceTitle "playchess.com"]
[Source "ChessBase"]
[SourceQuality "1"]
[TimeControl "900+10"]

1. e4 {[%emt 0:00:14]} c6 {[%emt 0:00:12]} 2. Nc3 {[%emt 0:00:31]} d5 {[%emt 0:00:02]} 3. Nf3 {[%emt 0:00:02]} dxe4 {[%emt 0:00:02]} 4. Nxe4 {[%emt 0:00:02]} Nf6 {[%emt 0:00:01]} 5. Qe2 {[%emt 0:00:09]} Nxe4 {[%emt 0:00:03]} 6. Qxe4 {[%emt 0:00:01]} Nd7 {[%emt 0:00:02]} 7. Bc4 {[%emt 0:00:02]} Nf6 {[%emt 0:00:02]} 8. Ne5 {[%emt 0:00:02]} e6 {[%emt 0:00:02]} 9. Qe2 {[%emt 0:00:03]} b5 {[%emt 0:00:02]} 10. Bb3 {[%emt 0:00:03]} Qc7 {[%emt 0:00:07]} 11. d4 {[%emt 0:00:05]} Bd6 {[%emt 0:00:15]} 12. O-O {[%emt 0:00:20]} O-O {[%emt 0:00:30]} 13. c3 {[%emt 0:00:01]} Bb7 {[%emt 0:01:57]} 14. Re1 {[%emt 0:00:12]} a6 {[%emt 0:00:25]} 15. Bc2 {[%emt 0:01:41]} c5 {[%emt 0:01:32]} 16. dxc5 {[%emt 0:04:13]} Qxc5 {[%emt 0:00:28]} 17. Bf4 {[%emt 0:00:49]} Rad8 {[%emt 0:02:18]} 18. Rad1 {[%emt 0:00:24]} Bd5 {[%emt 0:02:59]} 19. a3 {[%emt 0:02:18]} a5 {[%emt 0:00:10]} 20. Bg3 {[%emt 0:00:05]} b4 {[%emt 0:00:17]} 21. axb4 {[%emt 0:00:26]} axb4 {[%emt 0:00:02]} 22. Nd3 {[%emt 0:00:45]} Qb6 {[%emt 0:03:18]} 23. Bxd6 {[%emt 0:00:03]} Rxd6 {[%emt 0:00:08]} 24. Nxb4 {[%emt 0:00:04]} Bb7 {[%emt 0:00:19]} 25. Rxd6 {[%emt 0:00:04]} Qxd6 {[%emt 0:00:01]} 26. Rd1 {[%emt 0:00:04]} Qf4 {[%emt 0:00:11]} 27. f3 {[%emt 0:02:20]} h5 {[%emt 0:00:40]} 28. Qd2 {[%emt 0:00:02]} Qc7 {[%emt 0:00:38]} 29. Qd6 {[%emt 0:00:07]} Qc4 {[%emt 0:00:09]} 30. Qd4 {[%emt 0:00:52]} Qe2 {[%emt 0:00:21]} 31. h4 {[%emt 0:00:51]} Ng4 {[%emt 0:02:47]} 32. Qd2 {[%emt 0:00:10]} Bxf3 {[%emt 0:00:08]} 33. Qxe2 {[%emt 0:02:26]} Bxe2 {[%emt 0:00:02]} 34. Rd2 {[%emt 0:00:05]} Bb5 {[%emt 0:00:05]} 35. Bd1 {[%emt 0:00:08]} Ra8 {[%emt 0:00:09]} 36. Bxg4 {[%emt 0:00:03]} hxg4 {[%emt 0:00:01]} 37. Kf2 {[%emt 0:00:03]} f5 {[%emt 0:00:06]} 38. Nc2 {[%emt 0:00:08]} Kf7 {[%emt 0:00:13]} 39. g3 {[%emt 0:00:06]} Kf6 {[%emt 0:00:05]} 40. Nd4 {[%emt 0:00:05]} Bc4 {[%emt 0:00:04]} 41. b3 {[%emt 0:00:03]} Bd5 {[%emt 0:00:03]} 42. c4 {[%emt 0:00:01]} Be4 {[%emt 0:00:03]} 43. Nb5 {[%emt 0:00:07]} Rb8 {[%emt 0:00:19]} 44. Ke3 {[%emt 0:00:05]} g5 {[%emt 0:00:08]} 45. hxg5+ {[%emt 0:00:05]} Kxg5 {[%emt 0:00:02]} 46. Rb2 {[%emt 0:00:47]} e5 {[%emt 0:00:21]} 47. Nd6 {[%emt 0:00:22]} Bf3 {[%emt 0:00:07]} 48. b4 {[%emt 0:00:04]} f4+ {[%emt 0:00:13]} 49. Kf2 {[%emt 0:00:01]} e4 {[%emt 0:00:25]} 50. Ra2 {[%emt 0:01:12]} e3+ {[%emt 0:00:05]} 51. Kg1 {[%emt 0:00:03]} Rxb4 {[%emt 0:00:15]} 52. Ra5+ {[%emt 0:00:17]} Kg6 {[%emt 0:00:04]} 53. Rb5 {[%emt 0:00:25]} e2 {[%emt 0:00:11]} 54. Kf2 {[%emt 0:00:04]} fxg3+ {[%emt 0:00:03]} 55. Ke1 {[%emt 0:00:01]} Rxb5 0-1

[Event "Hungarian Rapid-ch 2022"]
[Site "Ajka"]
[Date "2022.07.17"]
[Round "11.18"]
[White "Mihok-Juhasz, Barbara"]
[Black "Lakos, Nikoletta"]
[Result "0-1"]
[ECO "C41"]
[WhiteElo "2221"]
[BlackElo "2203"]
[Annotator "ChessBase"]
[PlyCount "98"]
[EventDate "2022.07.15"]
[EventType "swiss"]
[EventCountry "HUN"]
[SourceTitle "playchess.com"]
[Source "ChessBase"]
[SourceQuality "1"]
[TimeControl "900+10"]

1. e4 {[%emt 0:00:13]} d6 {[%emt 0:00:12]} 2. d4 {[%emt 0:00:04]} Nf6 {[%emt 0:00:02]} 3. Nc3 {[%emt 0:00:03]} e5 {[%emt 0:00:01]} 4. Nf3 {[%emt 0:00:04]} Nbd7 {[%emt 0:00:04]} 5. Rg1 {[%emt 0:00:27]} exd4 {[%emt 0:02:09]} 6. Qxd4 {[%emt 0:00:17]} Nc5 {[%emt 0:01:10]} 7. Bc4 {[%emt 0:02:18]} Ne6 {[%emt 0:01:02]} 8. Bxe6 {[%emt 0:02:11]} Bxe6 {[%emt 0:00:05]} 9. Bf4 {[%emt 0:00:02]} Be7 {[%emt 0:03:23]} 10. O-O-O {[%emt 0:00:07]} a6 {[%emt 0:01:14]} 11. Kb1 {[%emt 0:02:56]} O-O {[%emt 0:00:37]} 12. h3 {[%emt 0:01:19]} b5 {[%emt 0:00:08]} 13. g4 {[%emt 0:00:23]} c5 {[%emt 0:01:01]} 14. Qe3 {[%emt 0:00:02]} b4 {[%emt 0:00:15]} 15. Nd5 {[%emt 0:00:31]} Bxd5 {[%emt 0:01:21]} 16. exd5 {[%emt 0:00:02]} Nd7 {[%emt 0:00:38]} 17. g5 {[%emt 0:00:29]} Re8 {[%emt 0:00:04]} 18. Qd3 {[%emt 0:00:24]} Nb6 19. h4 {[%emt 0:00:07]} Qd7 {[%emt 0:00:51]} 20. h5 {[%emt 0:00:12]} Qb5 {[%emt 0:00:01]} 21. Qf5 {[%emt 0:00:07]} Qd7 {[%emt 0:00:01]} 22. Nh4 {[%emt 0:01:13]} Bf8 {[%emt 0:01:05]} 23. g6 {[%emt 0:00:33]} hxg6 {[%emt 0:01:32]} 24. hxg6 {[%emt 0:00:03]} Qxf5 {[%emt 0:00:29]} 25. Nxf5 {[%emt 0:00:01]} Rad8 {[%emt 0:00:24]} 26. gxf7+ {[%emt 0:00:03]} Kxf7 {[%emt 0:00:01]} 27. Ne3 {[%emt 0:01:12]} Re4 {[%emt 0:00:14]} 28. Bg5 {[%emt 0:00:01]} Rde8 {[%emt 0:00:06]} 29. b3 {[%emt 0:00:18]} g6 {[%emt 0:00:07]} 30. Rg3 {[%emt 0:00:13]} Bg7 {[%emt 0:00:11]} 31. Rf3+ {[%emt 0:00:01]} Kg8 {[%emt 0:00:02]} 32. a3 {[%emt 0:00:31]} a5 {[%emt 0:00:02]} 33. Rf4 {[%emt 0:01:23]} bxa3 34. Ka2 {[%emt 0:00:05]} a4 {[%emt 0:00:32]} 35. Rg1 {[%emt 0:00:40]} axb3+ {[%emt 0:00:05]} 36. cxb3 {[%emt 0:00:01]} Rd4 {[%emt 0:00:29]} 37. Rxd4 {[%emt 0:00:36]} cxd4 {[%emt 0:00:05]} 38. Nc4 {[%emt 0:00:04]} Nxd5 {[%emt 0:00:10]} 39. Bd2 {[%emt 0:01:05]} Re2 {[%emt 0:00:15]} 40. Rxg6 {[%emt 0:00:10]} Nc3+ {[%emt 0:00:09]} 41. Ka1 {[%emt 0:00:41]} Rxf2 {[%emt 0:00:11]} 42. Rg1 {[%emt 0:00:21]} d5 {[%emt 0:00:10]} 43. Bxc3 {[%emt 0:00:15]} dxc3 {[%emt 0:00:27]} 44. Nxa3 {[%emt 0:00:14]} c2+ {[%emt 0:00:59]} 45. Rxg7+ {[%emt 0:00:03]} Kxg7 {[%emt 0:00:01]} 46. Kb2 {[%emt 0:00:02]} d4 {[%emt 0:00:01]} 47. b4 {[%emt 0:00:25]} d3 {[%emt 0:00:00]} 48. b5 {[%emt 0:00:02]} Rf1 {[%emt 0:00:04]} 49. b6 c1=Q+ {[%emt 0:00:04]} 0-1

[Event "Hungarian Rapid-ch 2022"]
[Site "Ajka"]
[Date "2022.07.17"]
[Round "11.19"]
[White "Egresi, Mate"]
[Black "Boguszlavszkij, Jevgenyij"]
[Result "1/2-1/2"]
[ECO "D37"]
[WhiteElo "2376"]
[BlackElo "1914"]
[Annotator "ChessBase"]
[PlyCount "99"]
[EventDate "2022.07.15"]
[EventType "swiss"]
[EventCountry "HUN"]
[SourceTitle "playchess.com"]
[Source "ChessBase"]
[SourceQuality "1"]
[TimeControl "900+10"]

1. d4 {[%emt 0:00:12]} Nf6 {[%emt 0:00:13]} 2. c4 {[%emt 0:00:01]} e6 {[%emt 0:00:02]} 3. Nf3 {[%emt 0:00:02]} d5 {[%emt 0:00:01]} 4. Nc3 {[%emt 0:00:01]} Nbd7 {[%emt 0:00:04]} 5. Bf4 {[%emt 0:00:16]} c6 {[%emt 0:00:04]} 6. e3 {[%emt 0:00:08]} Be7 {[%emt 0:00:04]} 7. h3 {[%emt 0:00:09]} O-O {[%emt 0:00:09]} 8. Qc2 {[%emt 0:00:01]} a6 {[%emt 0:00:17]} 9. cxd5 {[%emt 0:00:55]} exd5 {[%emt 0:00:18]} 10. Bd3 {[%emt 0:00:02]} Re8 {[%emt 0:00:20]} 11. O-O {[%emt 0:00:13]} Nf8 {[%emt 0:00:02]} 12. Rab1 {[%emt 0:00:04]} Ng6 {[%emt 0:00:50]} 13. Bh2 {[%emt 0:00:02]} Nh5 {[%emt 0:00:11]} 14. b4 {[%emt 0:00:51]} Bd6 {[%emt 0:00:19]} 15. Bxd6 {[%emt 0:00:05]} Qxd6 {[%emt 0:00:02]} 16. Rfe1 {[%emt 0:06:01]} Qf6 {[%emt 0:00:23]} 17. Qd1 {[%emt 0:00:05]} Nh4 {[%emt 0:00:15]} 18. Nxh4 {[%emt 0:00:09]} Qxh4 {[%emt 0:00:02]} 19. Qf3 {[%emt 0:01:33]} Qg5 {[%emt 0:01:25]} 20. a4 {[%emt 0:00:49]} Re6 {[%emt 0:00:19]} 21. e4 {[%emt 0:01:12]} Rf6 {[%emt 0:00:31]} 22. exd5 {[%emt 0:00:14]} Bd7 {[%emt 0:00:01]} 23. Qe4 {[%emt 0:01:21]} g6 {[%emt 0:00:35]} 24. h4 {[%emt 0:00:20]} Qf4 {[%emt 0:00:24]} 25. Qxf4 {[%emt 0:00:16]} Nxf4 {[%emt 0:00:08]} 26. Be4 {[%emt 0:01:04]} Rd8 {[%emt 0:02:06]} 27. Re3 {[%emt 0:01:21]} Rd6 {[%emt 0:01:10]} 28. Bf3 {[%emt 0:00:10]} cxd5 {[%emt 0:00:39]} 29. a5 {[%emt 0:00:12]} Bf5 {[%emt 0:00:31]} 30. Rbe1 {[%emt 0:00:09]} Nd3 {[%emt 0:00:30]} 31. Re8+ {[%emt 0:00:03]} Kg7 {[%emt 0:00:22]} 32. Rxd8 {[%emt 0:00:01]} Rxd8 {[%emt 0:00:02]} 33. Re7 {[%emt 0:00:02]} Nxb4 {[%emt 0:00:35]} 34. Rxb7 {[%emt 0:00:03]} Rc8 {[%emt 0:02:01]} 35. Nxd5 {[%emt 0:00:34]} Rc1+ {[%emt 0:00:10]} 36. Kh2 {[%emt 0:00:01]} Nd3 {[%emt 0:00:25]} 37. Ne3 {[%emt 0:00:29]} Nxf2 {[%emt 0:00:43]} 38. Nxf5+ {[%emt 0:00:02]} gxf5 {[%emt 0:00:04]} 39. Rb6 {[%emt 0:01:13]} f4 {[%emt 0:01:31]} 40. g3 {[%emt 0:00:01]} fxg3+ {[%emt 0:00:36]} 41. Kxg3 {[%emt 0:00:02]} Nd3 {[%emt 0:00:04]} 42. Rxa6 {[%emt 0:00:09]} Rc3 {[%emt 0:00:20]} 43. Kg4 {[%emt 0:00:50]} Nf2+ {[%emt 0:00:05]} 44. Kf4 {[%emt 0:00:06]} Nd3+ {[%emt 0:00:02]} 45. Kg4 {[%emt 0:00:05]} Nf2+ {[%emt 0:00:02]} 46. Kf4 {[%emt 0:00:01]} Nd3+ {[%emt 0:00:01]} 47. Ke4 {[%emt 0:00:17]} Nf2+ {[%emt 0:00:02]} 48. Kf4 {[%emt 0:00:01]} Nd3+ {[%emt 0:00:02]} 49. Ke4 {[%emt 0:00:43]} Nf2+ {[%emt 0:00:01]} 50. Kf4 1/2-1/2

[Event "Hungarian Rapid-ch 2022"]
[Site "Ajka"]
[Date "2022.07.17"]
[Round "11.20"]
[White "Tancsa, Tamas"]
[Black "Bodi, Tibor"]
[Result "1-0"]
[ECO "B12"]
[WhiteElo "2103"]
[BlackElo "2301"]
[Annotator "ChessBase"]
[PlyCount "77"]
[EventDate "2022.07.15"]
[EventType "swiss"]
[EventCountry "HUN"]
[SourceTitle "playchess.com"]
[Source "ChessBase"]
[SourceQuality "1"]
[TimeControl "900+10"]

1. e4 {[%emt 0:00:12]} c6 {[%emt 0:00:13]} 2. d4 {[%emt 0:00:01]} g6 {[%emt 0:00:02]} 3. f4 {[%emt 0:00:19]} d5 {[%emt 0:00:04]} 4. e5 {[%emt 0:00:01]} h5 {[%emt 0:00:04]} 5. Nf3 {[%emt 0:00:09]} Nh6 {[%emt 0:00:01]} 6. Be3 {[%emt 0:00:06]} Bg4 {[%emt 0:00:11]} 7. h3 {[%emt 0:00:26]} Nf5 {[%emt 0:00:19]} 8. Bf2 {[%emt 0:00:02]} Bxf3 {[%emt 0:00:10]} 9. Qxf3 {[%emt 0:00:01]} h4 {[%emt 0:00:10]} 10. Bd3 {[%emt 0:00:10]} e6 {[%emt 0:00:01]} 11. O-O {[%emt 0:00:50]} Qb6 {[%emt 0:00:07]} 12. Bxf5 {[%emt 0:00:23]} gxf5 {[%emt 0:00:02]} 13. Qb3 {[%emt 0:00:26]} Qc7 {[%emt 0:00:19]} 14. c4 {[%emt 0:00:06]} dxc4 {[%emt 0:00:23]} 15. Qxc4 {[%emt 0:00:03]} Nd7 {[%emt 0:00:01]} 16. Nc3 {[%emt 0:01:20]} Nb6 {[%emt 0:00:03]} 17. Qb3 {[%emt 0:00:34]} Be7 {[%emt 0:00:47]} 18. Rac1 {[%emt 0:00:04]} Qd7 {[%emt 0:00:25]} 19. a4 {[%emt 0:00:34]} Rg8 {[%emt 0:01:23]} 20. a5 {[%emt 0:00:07]} Nc8 {[%emt 0:00:38]} 21. Rfd1 {[%emt 0:00:02]} a6 {[%emt 0:00:12]} 22. d5 {[%emt 0:00:51]} exd5 {[%emt 0:00:16]} 23. Nxd5 {[%emt 0:00:02]} cxd5 {[%emt 0:01:44]} 24. Rxd5 {[%emt 0:00:01]} Qe6 {[%emt 0:00:12]} 25. Qxb7 {[%emt 0:00:01]} Rb8 {[%emt 0:03:40]} 26. Qxb8 {[%emt 0:00:23]} Qxd5 {[%emt 0:00:08]} 27. Qxc8+ {[%emt 0:00:19]} Bd8 {[%emt 0:00:02]} 28. Qc6+ {[%emt 0:00:04]} Qxc6 {[%emt 0:00:02]} 29. Rxc6 {[%emt 0:00:03]} Rg6 {[%emt 0:00:56]} 30. Rxg6 {[%emt 0:00:25]} fxg6 {[%emt 0:00:04]} 31. Bb6 {[%emt 0:00:02]} Be7 {[%emt 0:00:05]} 32. Kf2 {[%emt 0:00:00]} Kd7 {[%emt 0:00:01]} 33. Ke3 {[%emt 0:00:01]} Kc6 {[%emt 0:00:05]} 34. Kd4 {[%emt 0:00:01]} Bb4 {[%emt 0:00:02]} 35. Kd3 {[%emt 0:00:43]} Kd5 {[%emt 0:00:04]} 36. Bf2 {[%emt 0:00:06]} Be7 {[%emt 0:00:10]} 37. Be1 {[%emt 0:00:17]} Bd8 {[%emt 0:00:37]} 38. b4 {[%emt 0:00:01]} Bc7 {[%emt 0:00:00]} 39. Bxh4 {[%emt 0:00:07]} 1-0

[Event "Hungarian Rapid-ch 2022"]
[Site "Ajka"]
[Date "2022.07.17"]
[Round "11.21"]
[White "Martini, Balazs"]
[Black "Gombocz, Ferenc Jr."]
[Result "1/2-1/2"]
[ECO "D00"]
[WhiteElo "2348"]
[BlackElo "2229"]
[Annotator "ChessBase"]
[PlyCount "74"]
[EventDate "2022.07.15"]
[EventType "swiss"]
[EventCountry "HUN"]
[SourceTitle "playchess.com"]
[Source "ChessBase"]
[SourceQuality "1"]
[TimeControl "900+10"]

1. d4 {[%emt 0:00:12]} d5 {[%emt 0:00:12]} 2. Bf4 {[%emt 0:00:02]} Nf6 {[%emt 0:00:03]} 3. e3 {[%emt 0:00:02]} c5 {[%emt 0:00:03]} 4. c3 {[%emt 0:00:01]} Nc6 {[%emt 0:00:06]} 5. Nd2 {[%emt 0:00:01]} Bf5 {[%emt 0:00:30]} 6. Qb3 {[%emt 0:00:02]} Qd7 {[%emt 0:00:06]} 7. Ngf3 {[%emt 0:00:04]} c4 {[%emt 0:00:29]} 8. Qd1 {[%emt 0:00:17]} e6 {[%emt 0:00:24]} 9. Be2 {[%emt 0:00:11]} Be7 {[%emt 0:00:12]} 10. O-O {[%emt 0:00:17]} O-O {[%emt 0:00:03]} 11. Ne5 {[%emt 0:02:47]} Qc8 {[%emt 0:01:23]} 12. Bf3 {[%emt 0:00:12]} b5 {[%emt 0:01:07]} 13. Nxc6 {[%emt 0:02:43]} Qxc6 {[%emt 0:00:04]} 14. Bg5 {[%emt 0:00:07]} Rfe8 {[%emt 0:02:37]} 15. Bxf6 {[%emt 0:00:34]} Bxf6 {[%emt 0:00:15]} 16. Re1 {[%emt 0:00:03]} Bg5 {[%emt 0:00:24]} 17. e4 {[%emt 0:01:10]} Bxd2 {[%emt 0:00:23]} 18. exd5 {[%emt 0:00:04]} exd5 {[%emt 0:00:07]} 19. Qxd2 {[%emt 0:00:03]} Be4 {[%emt 0:00:21]} 20. Bxe4 {[%emt 0:01:28]} dxe4 {[%emt 0:00:09]} 21. Qf4 {[%emt 0:00:21]} Qd5 {[%emt 0:00:40]} 22. Re3 {[%emt 0:00:14]} Re6 {[%emt 0:00:43]} 23. Rae1 {[%emt 0:00:25]} Rae8 {[%emt 0:00:24]} 24. f3 {[%emt 0:01:47]} g5 {[%emt 0:02:33]} 25. Qg3 {[%emt 0:01:40]} exf3 {[%emt 0:00:19]} 26. Rxe6 {[%emt 0:00:24]} Rxe6 {[%emt 0:00:06]} 27. Rxe6 {[%emt 0:00:30]} fxe6 {[%emt 0:00:26]} 28. gxf3 {[%emt 0:00:14]} Qf5 {[%emt 0:00:41]} 29. Kg2 {[%emt 0:01:48]} Qc2+ {[%emt 0:00:55]} 30. Kh3 {[%emt 0:00:03]} h6 {[%emt 0:00:35]} 31. Qb8+ {[%emt 0:00:22]} Kg7 {[%emt 0:01:14]} 32. Qxb5 {[%emt 0:00:06]} Qf2 {[%emt 0:00:48]} 33. Qe5+ {[%emt 0:01:08]} Kf7 {[%emt 0:00:05]} 34. Qe4 {[%emt 0:00:22]} Qf1+ {[%emt 0:00:17]} 35. Kg3 {[%emt 0:00:08]} Qg1+ {[%emt 0:00:04]} 36. Kh3 {[%emt 0:00:01]} Qf1+ {[%emt 0:00:03]} 37. Kg3 {[%emt 0:00:01]} Qg1+ 1/2-1/2

[Event "Hungarian Rapid-ch 2022"]
[Site "Ajka"]
[Date "2022.07.17"]
[Round "11.22"]
[White "Kiss, Pal"]
[Black "Mozes, Ervin"]
[Result "1/2-1/2"]
[ECO "A53"]
[WhiteElo "2243"]
[BlackElo "2039"]
[Annotator "ChessBase"]
[PlyCount "54"]
[EventDate "2022.07.15"]
[EventType "swiss"]
[EventCountry "HUN"]
[SourceTitle "playchess.com"]
[Source "ChessBase"]
[SourceQuality "1"]
[TimeControl "900+10"]

1. d4 {[%emt 0:00:11]} Nf6 {[%emt 0:00:11]} 2. c4 {[%emt 0:00:04]} d6 {[%emt 0:00:05]} 3. Nf3 {[%emt 0:00:05]} c6 {[%emt 0:00:05]} 4. Nc3 {[%emt 0:00:02]} Bf5 {[%emt 0:00:01]} 5. Nh4 {[%emt 0:00:20]} Bd7 {[%emt 0:00:30]} 6. e4 {[%emt 0:00:08]} e5 {[%emt 0:00:03]} 7. Nf3 {[%emt 0:00:02]} Bg4 {[%emt 0:00:07]} 8. Be2 {[%emt 0:00:32]} Nbd7 {[%emt 0:00:13]} 9. O-O {[%emt 0:00:10]} Be7 {[%emt 0:00:43]} 10. Be3 {[%emt 0:00:10]} O-O {[%emt 0:00:20]} 11. d5 {[%emt 0:00:47]} h6 {[%emt 0:01:52]} 12. Nd2 {[%emt 0:01:16]} Bxe2 {[%emt 0:00:07]} 13. Qxe2 {[%emt 0:00:02]} Nh7 {[%emt 0:01:04]} 14. dxc6 {[%emt 0:03:21]} bxc6 {[%emt 0:00:01]} 15. b4 {[%emt 0:00:28]} a6 {[%emt 0:00:56]} 16. a4 {[%emt 0:00:16]} Bg5 {[%emt 0:01:21]} 17. b5 {[%emt 0:00:51]} Bxe3 {[%emt 0:01:17]} 18. Qxe3 {[%emt 0:00:06]} Qc7 {[%emt 0:01:16]} 19. bxc6 {[%emt 0:01:40]} Qxc6 {[%emt 0:00:06]} 20. Nd5 {[%emt 0:00:06]} Rfe8 {[%emt 0:00:01]} 21. Rfb1 {[%emt 0:01:10]} Nhf6 {[%emt 0:01:38]} 22. f3 {[%emt 0:00:52]} Kf8 {[%emt 0:00:41]} 23. Rb4 Nxd5 24. cxd5 Qc5 25. Qxc5 Nxc5 26. Rb6 Ke7 27. Nc4 Rab8 1/2-1/2

[Event "Hungarian Rapid-ch 2022"]
[Site "Ajka"]
[Date "2022.07.17"]
[Round "11.23"]
[White "Juhasz, Zoltan"]
[Black "Udvardi, Zalan"]
[Result "1/2-1/2"]
[ECO "B24"]
[WhiteElo "1985"]
[BlackElo "2310"]
[Annotator "ChessBase"]
[PlyCount "130"]
[EventDate "2022.07.15"]
[EventType "swiss"]
[EventCountry "HUN"]
[SourceTitle "playchess.com"]
[Source "ChessBase"]
[SourceQuality "1"]
[TimeControl "900+10"]

1. e4 {[%emt 0:00:11]} c5 {[%emt 0:00:11]} 2. Nc3 {[%emt 0:00:08]} Nc6 {[%emt 0:00:01]} 3. g3 {[%emt 0:00:06]} g6 {[%emt 0:00:01]} 4. d3 {[%emt 0:00:05]} Bg7 {[%emt 0:00:02]} 5. Be3 {[%emt 0:00:04]} d6 {[%emt 0:00:02]} 6. Qd2 {[%emt 0:00:04]} e5 {[%emt 0:00:02]} 7. Bg2 {[%emt 0:00:08]} Be6 {[%emt 0:00:06]} 8. Nge2 {[%emt 0:00:57]} Nd4 {[%emt 0:00:07]} 9. O-O {[%emt 0:00:53]} Bh3 {[%emt 0:00:21]} 10. f4 {[%emt 0:04:15]} Bxg2 {[%emt 0:00:15]} 11. Kxg2 {[%emt 0:00:04]} Ne7 {[%emt 0:02:18]} 12. fxe5 {[%emt 0:00:37]} dxe5 {[%emt 0:00:01]} 13. Rf2 {[%emt 0:02:19]} O-O {[%emt 0:00:08]} 14. Raf1 {[%emt 0:00:36]} Qd6 {[%emt 0:00:56]} 15. Ng1 {[%emt 0:01:15]} Ne6 {[%emt 0:00:44]} 16. Bh6 {[%emt 0:00:20]} f5 {[%emt 0:00:34]} 17. Bxg7 {[%emt 0:00:15]} Kxg7 {[%emt 0:00:10]} 18. Nh3 {[%emt 0:00:28]} h6 {[%emt 0:00:24]} 19. Re2 {[%emt 0:03:00]} Rf7 {[%emt 0:00:46]} 20. Qe3 {[%emt 0:00:39]} f4 {[%emt 0:01:00]} 21. gxf4 {[%emt 0:00:37]} exf4 {[%emt 0:00:01]} 22. e5 {[%emt 0:00:14]} Qc6+ {[%emt 0:00:00]} 23. Qe4 {[%emt 0:00:01]} f3+ {[%emt 0:00:02]} 24. Rxf3 {[%emt 0:00:16]} Rxf3 {[%emt 0:00:01]} 25. Qxc6 {[%emt 0:00:09]} Nxc6 {[%emt 0:00:11]} 26. Kxf3 {[%emt 0:00:02]} Ned4+ {[%emt 0:00:02]} 27. Ke4 {[%emt 0:00:06]} Nxe2 28. Nxe2 {[%emt 0:00:01]} Re8 {[%emt 0:00:08]} 29. c3 {[%emt 0:01:04]} Rxe5+ {[%emt 0:00:48]} 30. Kf3 {[%emt 0:00:02]} g5 {[%emt 0:00:28]} 31. Nf2 {[%emt 0:00:11]} Kg6 {[%emt 0:00:49]} 32. d4 {[%emt 0:00:32]} cxd4 {[%emt 0:00:40]} 33. cxd4 {[%emt 0:00:13]} Ra5 {[%emt 0:00:01]} 34. a3 {[%emt 0:00:06]} Rb5 {[%emt 0:00:02]} 35. Nd3 {[%emt 0:00:19]} Kf5 {[%emt 0:01:20]} 36. Ng3+ {[%emt 0:00:28]} Ke6 {[%emt 0:00:07]} 37. Ke4 {[%emt 0:00:05]} b6 {[%emt 0:00:37]} 38. Ne2 {[%emt 0:00:13]} Rd5 {[%emt 0:00:30]} 39. Nf2 {[%emt 0:00:15]} Kd6 {[%emt 0:00:50]} 40. Ng4 {[%emt 0:00:14]} Rb5 {[%emt 0:00:03]} 41. b4 {[%emt 0:00:07]} Nxb4 {[%emt 0:01:11]} 42. Nc3 {[%emt 0:00:17]} Ra5 {[%emt 0:00:10]} 43. axb4 {[%emt 0:00:01]} Ra1 {[%emt 0:00:04]} 44. Nxh6 {[%emt 0:00:08]} Rf1 {[%emt 0:00:10]} 45. Nb5+ {[%emt 0:00:10]} Ke6 {[%emt 0:01:06]} 46. d5+ {[%emt 0:00:13]} Kd7 {[%emt 0:00:17]} 47. Nxa7 {[%emt 0:00:14]} Rf4+ {[%emt 0:00:36]} 48. Ke5 {[%emt 0:00:02]} Rh4 {[%emt 0:00:11]} 49. Nf7 {[%emt 0:00:11]} g4 {[%emt 0:00:22]} 50. Nc6 {[%emt 0:00:16]} Rxh2 {[%emt 0:00:15]} 51. Kf5 {[%emt 0:00:17]} g3 {[%emt 0:00:08]} 52. Nce5+ {[%emt 0:00:01]} Kc8 {[%emt 0:00:13]} 53. d6 {[%emt 0:00:02]} Rd2 {[%emt 0:00:08]} 54. d7+ {[%emt 0:00:08]} Rxd7 55. Nxd7 {[%emt 0:00:00]} g2 {[%emt 0:00:06]} 56. Nxb6+ {[%emt 0:00:11]} Kb7 {[%emt 0:00:05]} 57. Nc4 {[%emt 0:00:11]} g1=Q {[%emt 0:00:03]} 58. Nfd6+ {[%emt 0:00:01]} Kc6 {[%emt 0:00:09]} 59. b5+ {[%emt 0:00:02]} Kd5 {[%emt 0:00:15]} 60. b6 {[%emt 0:00:00]} Qf2+ {[%emt 0:00:11]} 61. Kg4 {[%emt 0:00:07]} Kc6 {[%emt 0:00:58]} 62. b7 {[%emt 0:00:01]} Kc7 {[%emt 0:00:06]} 63. Kg5 {[%emt 0:00:23]} Qf3 {[%emt 0:00:09]} 64. Kg6 {[%emt 0:00:01]} Qxb7 {[%emt 0:01:00]} 65. Nxb7 {[%emt 0:00:02]} Kxb7 {[%emt 0:00:03]} 1/2-1/2